fUST/lending_fUST_20250810
["ID","MTS","AMOUNT","RATE_DAILY","PERIOD"]
[378166085,1754758239785,-440.02761962,0.00021824,2]
[378166086,1754758239795,-460.0,0.00021824,2]
[378166087,1754758239804,-460.0,0.00021824,2]
[378166088,1754758239814,-559.57,0.00021824,2]
[378166089,1754758239823,-460.0,0.00021824,2]
[378166090,1754758239833,-460.0,0.00021824,2]
[378166091,1754758239842,-460.0,0.00021824,2]
[378166092,1754758239852,-460.0,0.00021825,2]
[378166093,1754758239861,-415.48042788,0.00021825,2]
[378166094,1754758239870,-460.0,0.00021825,2]
[378166095,1754758239880,-460.0,0.00021825,2]
[378166096,1754758239890,-460.0,0.00021825,2]
[378166097,1754758239899,-460.0,0.00021825,2]
[378166098,1754758239909,-556.19,0.00021825,2]
[378166099,1754758239918,-460.0,0.00021825,2]
[378166100,1754758239927,-460.0,0.00021825,2]
[378166101,1754758239937,-460.0,0.00021825,2]
[378166102,1754758239947,-460.0,0.00021825,2]
[378166103,1754758239956,-1015.54,0.00021825,2]
[378166105,1754758239976,-706.55,0.00021825,2]
[378166106,1754758239987,-460.0,0.00021825,2]
[378166107,1754758239996,-881.26,0.00021825,2]
[378166108,1754758240006,-246.8,0.00021825,2]
[378166109,1754758240016,-460.0,0.00021825,2]
[378166110,1754758240026,-1886.54,0.00021854,2]
[378166111,1754758240036,-460.0,0.00021854,2]
[378166112,1754758240045,-620.42,0.00021854,2]
[378166113,1754758240054,-200.0,0.00021979,15]
[378166114,1754758240064,-200.0,0.00021979,15]
[378166115,1754758240073,-200.0,0.00021979,15]
[378166116,1754758240083,-200.0,0.00021979,15]
[378166117,1754758240092,-200.0,0.00021979,15]
[378166118,1754758240102,-465.01,0.00022096,2]
[378166119,1754758240111,-1737.07,0.00022097,2]
[378166120,1754758240121,-460.0,0.00022097,2]
[378166121,1754758240130,-765.25,0.00022097,2]
[378166123,1754758240141,-460.0,0.00022097,2]
[378166125,1754758240151,-925.5,0.00022097,2]
[378166127,1754758240167,-460.0,0.00022097,2]
[378166129,1754758240177,-460.0,0.00022097,2]
[378166131,1754758240187,-460.0,0.00022097,2]
[378166133,1754758240196,-913.38,0.00022097,2]
[378166135,1754758240206,-460.0,0.00022097,2]
[378166137,1754758240215,-460.0,0.00022097,2]
[378166139,1754758240225,-460.0,0.00022097,2]
[378166141,1754758240235,-1164.79,0.00022097,2]
[378166143,1754758240245,-460.0,0.00022097,2]
[378166145,1754758240254,-460.0,0.00022098,2]
[378166147,1754758240263,-460.0,0.00022098,2]
[378166149,1754758240272,-460.0,0.00022098,2]
[378166151,1754758240282,-460.0,0.00022098,2]
[378166153,1754758240291,-460.0,0.00022098,2]
[378166155,1754758240300,-548.52,0.00022098,2]
[378166157,1754758240310,-829.17,0.00022098,2]
[378166159,1754758240319,-460.0,0.00022098,2]
[378166161,1754758240329,-460.0,0.00022098,2]
[378166163,1754758240338,-460.0,0.00022098,2]
[378166165,1754758240347,-460.0,0.00022098,2]
[378166167,1754758240357,-460.0,0.00022098,2]
[378166169,1754758240367,-460.0,0.00022098,2]
[378166171,1754758240376,-460.0,0.00022098,2]
[378166173,1754758240385,-460.0,0.00022098,2]
[378166176,1754758240395,-460.0,0.00022098,2]
[378166178,1754758240404,-460.0,0.00022098,2]
[378166180,1754758240413,-669.58,0.00022098,2]
[378166181,1754758240422,-460.0,0.00022098,2]
[378166183,1754758240432,-460.0,0.00022098,2]
[378166184,1754758240442,-559.57,0.00022098,2]
[378166185,1754758240451,-460.0,0.00022098,2]
[378166187,1754758240460,-460.0,0.00022098,2]
[378166189,1754758240470,-460.0,0.00022098,2]
[378166191,1754758240479,-460.0,0.00022099,2]
[378166192,1754758240487,-460.0,0.00022099,2]
[378166195,1754758240497,-460.0,0.00022099,2]
[378166196,1754758240506,-460.0,0.00022099,2]
[378166198,1754758240515,-460.0,0.00022099,2]
[378166201,1754758240525,-460.0,0.00022099,2]
[378166202,1754758240535,-377.7,0.00022099,2]
[378166204,1754758240545,-460.0,0.00022099,2]
[378166206,1754758240554,-460.0,0.00022099,2]
[378166208,1754758240563,-1015.54,0.00022099,2]
[378166210,1754758240572,-706.55,0.00022099,2]
[378166212,1754758240582,-460.0,0.00022099,2]
[378166214,1754758240591,-881.26,0.00022099,2]
[378166215,1754758240601,-460.0,0.00022099,2]
[378166216,1754758240611,-1886.54,0.00022128,2]
[378166217,1754758240620,-460.0,0.00022128,2]
[378166218,1754758240629,-620.42,0.00022128,2]
[378166219,1754758240639,-500.0,0.00022156,2]
[378166220,1754758240649,-500.0,0.00022156,2]
[378166221,1754758240660,-500.0,0.00022156,2]
[378166222,1754758240670,-503.28221012,0.00022156,2]
[378166223,1754758240679,-500.0,0.00022156,2]
[378166224,1754758240689,-500.0,0.00022173,2]
[378166225,1754758240699,-500.0,0.00022173,2]
[378166227,1754758240708,-502.63167957,0.00022173,2]
[378166228,1754758240718,-500.0,0.00022173,2]
[378166229,1754758240728,-422.92991732,0.00022173,2]
[378166230,1754758240738,-259.14114881,0.00022179,2]
[378166231,1754758240748,-500.0,0.00022181,2]
[378166232,1754758240757,-699.28646901,0.00022262,2]
[378166233,1754758240767,-500.0,0.00022288,2]
[378166234,1754758240777,-500.0,0.00022288,2]
[378166235,1754758240787,-516.56,0.00022362,3]
[378166236,1754758240799,-688.73,0.00022362,3]
[378166237,1754758240816,-774.81,0.00022362,3]
[378166238,1754758241002,-387.41,0.00022362,3]
[378166239,1754758241021,-387.41,0.00022362,3]
[378166240,1754758241030,-172.18,0.00022363,3]
[378166241,1754758241040,-465.01,0.0002237,2]
[378166242,1754758241050,-460.0,0.00022371,2]
[378166243,1754758241059,-765.25,0.00022371,2]
[378166244,1754758241069,-460.0,0.00022371,2]
[378166245,1754758241078,-925.5,0.00022371,2]
[378166246,1754758241088,-460.0,0.00022371,2]
[378166247,1754758241098,-460.0,0.00022371,2]
[378166248,1754758241107,-913.38,0.00022371,2]
[378166249,1754758241116,-460.0,0.00022371,2]
[378166250,1754758241126,-460.0,0.00022371,2]
[378166251,1754758241136,-1164.79,0.00022371,2]
[378166252,1754758241146,-460.0,0.00022371,2]
[378166253,1754758241157,-460.0,0.00022372,2]
[378166254,1754758241174,-460.0,0.00022372,2]
[378166255,1754758241184,-460.0,0.00022372,2]
[378166256,1754758241194,-548.52,0.00022372,2]
[378166257,1754758241205,-829.17,0.00022372,2]
[378166258,1754758241215,-460.0,0.00022372,2]
[378166259,1754758241226,-460.0,0.00022372,2]
[378166260,1754758241236,-460.0,0.00022372,2]
[378166261,1754758241247,-460.0,0.00022372,2]
[378166262,1754758241257,-187.58357108,0.00022372,2]
[378166263,1754758241267,-460.0,0.00022372,2]
[378166264,1754758241278,-460.0,0.00022372,2]
[378166265,1754758241288,-460.0,0.00022372,2]
[378166266,1754758241297,-291.74345677,0.00022372,2]
[378166267,1754758241307,-669.58,0.00022372,2]
[378166268,1754758241316,-460.0,0.00022372,2]
[378166269,1754758241326,-559.57,0.00022372,2]
[378166270,1754758241336,-460.0,0.00022372,2]
[378166271,1754758241345,-460.0,0.00022372,2]
[378166272,1754758241355,-204.58,0.00022372,2]
[378166273,1754758241364,-460.0,0.00022373,2]
[378166274,1754758241373,-460.0,0.00022373,2]
[378166275,1754758241383,-460.0,0.00022373,2]
[378166276,1754758241392,-460.0,0.00022373,2]
[378166277,1754758241401,-460.0,0.00022373,2]
[378166278,1754758241410,-1015.54,0.00022373,2]
[378166279,1754758241419,-706.55,0.00022373,2]
[378166280,1754758241429,-460.0,0.00022373,2]
[378166281,1754758241439,-881.26,0.00022373,2]
[378166282,1754758241448,-460.0,0.00022373,2]
[378166283,1754758241457,-1886.54,0.00022402,2]
[378166284,1754758241466,-460.0,0.00022402,2]
[378166285,1754758241476,-620.42,0.00022402,2]
[378166286,1754758241485,-500.0,0.00022458,2]
[378166287,1754758241494,-11307.39338012,0.00022475,2]
[378166288,1754758241504,-160.0,0.00022533,2]
[378166289,1754758241513,-160.0,0.00022533,2]
[378166290,1754758241522,-160.0,0.00022533,2]
[378166291,1754758241531,-12666.14847857,0.00022533,2]
[378166292,1754758241540,-160.0,0.00022533,2]
[378166293,1754758241550,-461.55179734,0.00022533,2]
[378166294,1754758241559,-215.40758176,0.00022533,2]
[378166295,1754758241568,-527.77735381,0.00022533,2]
[378166296,1754758241577,-160.0,0.00022533,2]
[378166297,1754758241587,-842.95011917,0.00022533,2]
[378166298,1754758241597,-216.61183532,0.00022533,2]
[378166299,1754758241607,-231.92402426,0.00022533,2]
[378166300,1754758241616,-160.0,0.00022533,2]
[378166301,1754758241626,-312.16666667,0.00022544,2]
[378166302,1754758241635,-465.01,0.00022644,2]
[378166303,1754758241645,-460.0,0.00022645,2]
[378166304,1754758241655,-765.25,0.00022645,2]
[378166305,1754758241664,-460.0,0.00022645,2]
[378166306,1754758241674,-925.5,0.00022645,2]
[378166307,1754758241683,-460.0,0.00022645,2]
[378166308,1754758241692,-260.8,0.00022645,2]
[378166309,1754758241701,-913.38,0.00022645,2]
[378166310,1754758241710,-460.0,0.00022645,2]
[378166311,1754758241719,-460.0,0.00022645,2]
[378166312,1754758241728,-1164.79,0.00022645,2]
[378166313,1754758241737,-460.0,0.00022645,2]
[378166314,1754758241746,-460.0,0.00022646,2]
[378166315,1754758241755,-548.52,0.00022646,2]
[378166316,1754758241765,-829.17,0.00022646,2]
[378166317,1754758241774,-460.0,0.00022646,2]
[378166318,1754758241783,-460.0,0.00022646,2]
[378166319,1754758241792,-151.03,0.00022646,2]
[378166320,1754758241801,-460.0,0.00022646,2]
[378166321,1754758241810,-460.0,0.00022646,2]
[378166322,1754758241819,-460.0,0.00022646,2]
[378166323,1754758241828,-669.58,0.00022646,2]
[378166324,1754758241838,-460.0,0.00022646,2]
[378166325,1754758241847,-559.57,0.00022646,2]
[378166326,1754758241856,-460.0,0.00022646,2]
[378166327,1754758241865,-460.0,0.00022646,2]
[378166328,1754758241875,-460.0,0.00022647,2]
[378166329,1754758241884,-460.0,0.00022647,2]
[378166330,1754758241897,-460.0,0.00022647,2]
[378166331,1754758241907,-460.0,0.00022647,2]
[378166332,1754758241917,-460.0,0.00022647,2]
[378166333,1754758241927,-1015.54,0.00022647,2]
[378166334,1754758241936,-706.55,0.00022647,2]
[378166335,1754758241945,-460.0,0.00022647,2]
[378166336,1754758241955,-881.26,0.00022647,2]
[378166337,1754758241964,-460.0,0.00022647,2]
[378166338,1754758241974,-1886.54,0.00022676,2]
[378166339,1754758241983,-460.0,0.00022676,2]
[378166340,1754758241993,-620.42,0.00022676,2]
[378166341,1754758242003,-699.28646898,0.00022897,2]
[378166342,1754758242013,-465.01,0.00022918,2]
[378166343,1754758242023,-460.0,0.00022919,2]
[378166344,1754758242033,-765.25,0.00022919,2]
[378166345,1754758242043,-460.0,0.00022919,2]
[378166346,1754758242052,-925.5,0.00022919,2]
[378166347,1754758242061,-460.0,0.00022919,2]
[378166348,1754758242071,-913.38,0.00022919,2]
[378166349,1754758242081,-460.0,0.00022919,2]
[378166350,1754758242091,-460.0,0.00022919,2]
[378166351,1754758242101,-1164.79,0.00022919,2]
[378166352,1754758242111,-460.0,0.00022919,2]
[378166353,1754758242120,-460.0,0.0002292,2]
[378166354,1754758242130,-548.52,0.0002292,2]
[378166355,1754758242140,-829.17,0.0002292,2]
[378166356,1754758242149,-460.0,0.0002292,2]
[378166357,1754758242161,-185.91,0.0002292,2]
[378166358,1754758242171,-460.0,0.0002292,2]
[378166359,1754758242181,-460.0,0.0002292,2]
[378166360,1754758242190,-460.0,0.0002292,2]
[378166361,1754758242200,-669.58,0.0002292,2]
[378166362,1754758242210,-460.0,0.0002292,2]
[378166363,1754758242220,-559.57,0.0002292,2]
[378166364,1754758242230,-460.0,0.0002292,2]
[378166365,1754758242241,-460.0,0.00022921,2]
[378166366,1754758242250,-460.0,0.00022921,2]
[378166367,1754758242260,-460.0,0.00022921,2]
[378166368,1754758242270,-460.0,0.00022921,2]
[378166369,1754758242279,-460.0,0.00022921,2]
[378166370,1754758242289,-1015.54,0.00022921,2]
[378166371,1754758242299,-706.55,0.00022921,2]
[378166372,1754758242308,-460.0,0.00022921,2]
[378166373,1754758242317,-881.26,0.00022921,2]
[378166374,1754758242327,-460.0,0.00022921,2]
[378166375,1754758242336,-1886.54,0.0002295,2]
[378166376,1754758242347,-460.0,0.0002295,2]
[378166377,1754758242356,-620.42,0.0002295,2]
[378166378,1754758242366,-160.0,0.00023,2]
[378166379,1754758242376,-465.01,0.00023192,2]
[378166380,1754758242386,-460.0,0.00023193,2]
[378166381,1754758242395,-765.25,0.00023193,2]
[378166382,1754758242405,-460.0,0.00023193,2]
[378166383,1754758242414,-925.5,0.00023193,2]
[378166384,1754758242424,-460.0,0.00023193,2]
[378166385,1754758242434,-913.38,0.00023193,2]
[378166386,1754758242443,-460.0,0.00023193,2]
[378166387,1754758242453,-460.0,0.00023193,2]
[378166388,1754758242462,-1164.79,0.00023193,2]
[378166389,1754758242472,-460.0,0.00023193,2]
[378166390,1754758242482,-460.0,0.00023194,2]
[378166391,1754758242491,-548.52,0.00023194,2]
[378166392,1754758242500,-829.17,0.00023194,2]
[378166393,1754758242510,-167.94,0.00023194,2]
[378166394,1754758242519,-460.0,0.00023194,2]
[378166395,1754758242528,-460.0,0.00023194,2]
[378166396,1754758242538,-460.0,0.00023194,2]
[378166397,1754758242548,-669.58,0.00023194,2]
[378166398,1754758242557,-460.0,0.00023194,2]
[378166399,1754758242567,-559.57,0.00023194,2]
[378166400,1754758242576,-460.0,0.00023194,2]
[378166401,1754758242585,-460.0,0.00023195,2]
[378166402,1754758242594,-460.0,0.00023195,2]
[378166403,1754758242604,-460.0,0.00023195,2]
[378166404,1754758242613,-460.0,0.00023195,2]
[378166405,1754758242623,-460.0,0.00023195,2]
[378166406,1754758242632,-1015.54,0.00023195,2]
[378166407,1754758242642,-706.55,0.00023195,2]
[378166408,1754758242651,-460.0,0.00023195,2]
[378166409,1754758242660,-881.26,0.00023195,2]
[378166410,1754758242670,-460.0,0.00023195,2]
[378166411,1754758242680,-151.0,0.00023197,2]
[378166412,1754758242689,-198.0,0.00023197,2]
[378166413,1754758242699,-220.84070799,0.00023197,2]
[378166414,1754758242709,-151.0,0.00023197,2]
[378166415,1754758242718,-153.02299337,0.00023197,2]
[378166416,1754758242727,-151.0,0.00023197,2]
[378166417,1754758242737,-151.0,0.00023197,2]
[378166418,1754758242746,-570.36189278,0.00023223,2]
[378166419,1754758242755,-570.36189278,0.00023223,2]
[378166420,1754758242765,-570.36189278,0.00023223,2]
[378166421,1754758242775,-570.36189278,0.00023223,2]
[378166422,1754758242784,-570.36189278,0.00023223,2]
[378166423,1754758242794,-570.36189278,0.00023223,2]
[378166424,1754758242803,-570.36189278,0.00023223,2]
[378166425,1754758242813,-570.36189278,0.00023223,2]
[378166426,1754758242822,-570.36189278,0.00023223,2]
[378166427,1754758242831,-570.36189278,0.00023223,2]
[378166428,1754758242840,-570.36189278,0.00023223,2]
[378166429,1754758242850,-570.36189278,0.00023223,2]
[378166430,1754758242860,-570.36189278,0.00023223,2]
[378166431,1754758242869,-570.36189278,0.00023223,2]
[378166432,1754758242878,-570.36189278,0.00023223,2]
[378166434,1754758242888,-570.36189278,0.00023223,2]
[378166435,1754758242898,-570.36189278,0.00023223,2]
[378166436,1754758242907,-570.36189278,0.00023223,2]
[378166437,1754758242917,-570.36189278,0.00023223,2]
[378166438,1754758242927,-570.36189278,0.00023223,2]
[378166439,1754758242936,-1886.54,0.00023224,2]
[378166440,1754758242946,-460.0,0.00023224,2]
[378166441,1754758242955,-620.42,0.00023224,2]
[378166442,1754758242964,-10781.06533134,0.00023367,2]
[378166443,1754758242974,-7863.61142986,0.00023409,2]
[378166444,1754758242983,-420.0,0.00023425,2]
[378166445,1754758242993,-480.0,0.00023426,2]
[378166446,1754758243002,-465.01,0.00023466,2]
[378166447,1754758243012,-460.0,0.00023467,2]
[378166449,1754758243022,-765.25,0.00023467,2]
[378166450,1754758243032,-460.0,0.00023467,2]
[378166451,1754758243042,-925.5,0.00023467,2]
[378166452,1754758243052,-244.46146978,0.00023467,2]
[378166453,1754758243061,-913.38,0.00023467,2]
[378166454,1754758243071,-460.0,0.00023467,2]
[378166455,1754758243080,-460.0,0.00023467,2]
[378166456,1754758243090,-1164.79,0.00023467,2]
[378166457,1754758243100,-460.0,0.00023467,2]
[378166458,1754758243109,-460.0,0.00023468,2]
[378166459,1754758243119,-548.52,0.00023468,2]
[378166460,1754758243128,-829.17,0.00023468,2]
[378166461,1754758243138,-460.0,0.00023468,2]
[378166462,1754758243148,-441.87839612,0.00023468,2]
[378166463,1754758243159,-460.0,0.00023468,2]
[378166464,1754758243169,-669.58,0.00023468,2]
[378166465,1754758243178,-460.0,0.00023468,2]
[378166466,1754758243188,-559.57,0.00023468,2]
[378166467,1754758243197,-460.0,0.00023468,2]
[378166468,1754758243207,-460.0,0.00023469,2]
[378166469,1754758243216,-460.0,0.00023469,2]
[378166470,1754758243226,-460.0,0.00023469,2]
[378166471,1754758243236,-460.0,0.00023469,2]
[378166472,1754758243245,-460.0,0.00023469,2]
[378166473,1754758243255,-1015.54,0.00023469,2]
[378166474,1754758243264,-706.55,0.00023469,2]
[378166475,1754758243273,-359.24737386,0.00023469,2]
[378166476,1754758243283,-881.26,0.00023469,2]
[378166477,1754758243292,-460.0,0.00023469,2]
[378166478,1754758243302,-151.0,0.00023471,2]
[378166479,1754758243312,-151.0,0.00023471,2]
[378166480,1754758243322,-151.0,0.00023471,2]
[378166481,1754758243332,-1886.54,0.00023498,2]
[378166482,1754758243342,-460.0,0.00023498,2]
[378166483,1754758243352,-620.42,0.00023498,2]
[378166484,1754758243361,-699.28646898,0.00023531,2]
[378166485,1754758243371,-480.0,0.00023536,2]
[378166486,1754758243380,-160.0,0.00023636,2]
[378166487,1754758243390,-500.0,0.00023655,2]
[378166488,1754758243400,-500.0,0.00023655,2]
[378166489,1754758243409,-500.0,0.00023655,2]
[378166490,1754758243419,-1377.46,0.00023732,3]
[378166491,1754758243429,-1549.62,0.00023732,3]
[378166492,1754758243438,-774.82,0.00023732,3]
[378166493,1754758243448,-774.82,0.00023732,3]
[378166494,1754758243457,-344.36,0.00023733,3]
[378166495,1754758243468,-465.01,0.0002374,2]
[378166496,1754758243478,-460.0,0.00023741,2]
[378166497,1754758243487,-765.25,0.00023741,2]
[378166498,1754758243497,-171.63574534,0.00023741,2]
[378166499,1754758243508,-925.5,0.00023741,2]
[378166500,1754758243517,-913.38,0.00023741,2]
[378166501,1754758243527,-460.0,0.00023741,2]
[378166502,1754758243536,-460.0,0.00023741,2]
[378166503,1754758243546,-1164.79,0.00023741,2]
[378166504,1754758243556,-460.0,0.00023741,2]
[378166505,1754758243566,-460.0,0.00023742,2]
[378166506,1754758243575,-548.52,0.00023742,2]
[378166507,1754758243605,-829.17,0.00023742,2]
[378166508,1754758243614,-460.0,0.00023742,2]
[378166509,1754758243624,-460.0,0.00023742,2]
[378166510,1754758243634,-669.58,0.00023742,2]
[378166512,1754758243646,-460.0,0.00023742,2]
[378166513,1754758243655,-559.57,0.00023742,2]
[378166514,1754758243665,-460.0,0.00023742,2]
[378166515,1754758243674,-460.0,0.00023743,2]
[378166516,1754758243683,-460.0,0.00023743,2]
[378166517,1754758243900,-460.0,0.00023743,2]
[378166518,1754758243910,-460.0,0.00023743,2]
[378166519,1754758243922,-460.0,0.00023743,2]
[378166520,1754758243931,-1015.54,0.00023743,2]
[378166521,1754758243941,-706.55,0.00023743,2]
[378166522,1754758243950,-881.26,0.00023743,2]
[378166523,1754758243959,-460.0,0.00023743,2]
[378166524,1754758243969,-198.0,0.00023745,2]
[378166525,1754758243978,-198.0,0.00023745,2]
[378166526,1754758243995,-1886.54,0.00023772,2]
[378166527,1754758244004,-460.0,0.00023772,2]
[378166528,1754758244014,-620.42,0.00023772,2]
[378166529,1754758244023,-150.0,0.00023825,2]
[378166530,1754758244033,-206.305738,0.00023976,2]
[378166531,1754758244043,-465.01,0.00024014,2]
[378166532,1754758244052,-460.0,0.00024015,2]
[378166533,1754758244062,-765.25,0.00024015,2]
[378166534,1754758244071,-925.5,0.00024015,2]
[378166535,1754758244080,-913.38,0.00024015,2]
[378166536,1754758244090,-460.0,0.00024015,2]
[378166537,1754758244099,-460.0,0.00024015,2]
[378166538,1754758244109,-1164.79,0.00024015,2]
[378166539,1754758244119,-460.0,0.00024016,2]
[378166540,1754758244129,-548.52,0.00024016,2]
[378166541,1754758244140,-829.17,0.00024016,2]
[378166542,1754758244150,-460.0,0.00024016,2]
[378166543,1754758244163,-460.0,0.00024016,2]
[378166544,1754758244173,-669.58,0.00024016,2]
[378166545,1754758244182,-460.0,0.00024016,2]
[378166546,1754758244192,-559.57,0.00024016,2]
[378166547,1754758244203,-460.0,0.00024016,2]
[378166548,1754758244212,-460.0,0.00024017,2]
[378166549,1754758244222,-460.0,0.00024017,2]
[378166550,1754758244233,-460.0,0.00024017,2]
[378166551,1754758244243,-460.0,0.00024017,2]
[378166552,1754758244254,-460.0,0.00024017,2]
[378166553,1754758244264,-1015.54,0.00024017,2]
[378166554,1754758244273,-706.55,0.00024017,2]
[378166555,1754758244283,-881.26,0.00024017,2]
[378166556,1754758244292,-460.0,0.00024017,2]
[378166557,1754758244302,-1886.54,0.00024046,2]
[378166558,1754758244311,-460.0,0.00024046,2]
[378166559,1754758244320,-620.42,0.00024046,2]
[378166560,1754758244330,-150.32667,0.00024113,2]
[378166561,1754758244340,-200.0,0.00024123,15]
[378166562,1754758244349,-200.0,0.00024123,15]
[378166563,1754758244359,-200.0,0.00024123,15]
[378166564,1754758244369,-200.0,0.00024123,15]
[378166565,1754758244379,-200.0,0.00024123,15]
[378166566,1754758244389,-200.0,0.00024123,15]
[378166567,1754758244400,-200.0,0.00024123,15]
[378166568,1754758244410,-243.37969701,0.00024152,2]
[378166569,1754758244420,-5000.0,0.00024164,2]
[378166570,1754758244429,-699.28646898,0.00024166,2]
[378166571,1754758244439,-1052.13338448,0.00024184,2]
[378166572,1754758244448,-260.0,0.00024184,2]
[378166573,1754758244458,-150.32667,0.00024256,3]
[378166574,1754758244468,-200.0,0.00024273,2]
[378166575,1754758244477,-511.05840491,0.00024273,2]
[378166576,1754758244487,-500.0,0.00024273,2]
[378166577,1754758244496,-500.0,0.00024273,2]
[378166578,1754758244506,-500.0,0.00024273,2]
[378166579,1754758244515,-465.01,0.00024288,2]
[378166580,1754758244525,-460.0,0.00024289,2]
[378166581,1754758244669,-765.25,0.00024289,2]
[378166582,1754758244679,-925.5,0.00024289,2]
[378166583,1754758244689,-913.38,0.00024289,2]
[378166584,1754758244698,-460.0,0.00024289,2]
[378166585,1754758244708,-460.0,0.00024289,2]
[378166586,1754758244717,-1164.79,0.00024289,2]
[378166587,1754758244726,-460.0,0.0002429,2]
[378166588,1754758244736,-548.52,0.0002429,2]
[378166589,1754758244745,-829.17,0.0002429,2]
[378166590,1754758244755,-460.0,0.0002429,2]
[378166591,1754758244765,-460.0,0.0002429,2]
[378166592,1754758244775,-669.58,0.0002429,2]
[378166593,1754758244785,-460.0,0.0002429,2]
[378166594,1754758244794,-559.57,0.0002429,2]
[378166595,1754758244804,-460.0,0.0002429,2]
[378166596,1754758244814,-460.0,0.00024291,2]
[378166597,1754758244823,-460.0,0.00024291,2]
[378166598,1754758244833,-460.0,0.00024291,2]
[378166599,1754758244843,-460.0,0.00024291,2]
[378166600,1754758244854,-460.0,0.00024291,2]
[378166601,1754758244864,-1015.54,0.00024291,2]
[378166602,1754758244874,-706.55,0.00024291,2]
[378166603,1754758244892,-881.26,0.00024291,2]
[378166604,1754758244902,-460.0,0.00024291,2]
[378166605,1754758244911,-99999.999999,0.000243,7]
[378166606,1754758244921,-216.61183532,0.000243,7]
[378166607,1754758244932,-312.16666667,0.000243,7]
[378166608,1754758244942,-215.40758176,0.000243,7]
[378166609,1754758244952,-527.77735381,0.000243,7]
[378166610,1754758244961,-842.95011917,0.000243,7]
[378166611,1754758244971,-160.0,0.000243,7]
[378166612,1754758244981,-160.0,0.000243,7]
[378166613,1754758244990,-231.92402426,0.000243,7]
[378166614,1754758244999,-12666.14847857,0.000243,7]
[378166615,1754758245009,-1886.54,0.0002432,2]
[378166616,1754758245022,-460.0,0.0002432,2]
[378166617,1754758245031,-620.42,0.0002432,2]
[378166618,1754758245041,-1729.50921074,0.00024383,2]
[378166619,1754758245050,-500.0,0.00024473,2]
[378166620,1754758245060,-312.17,0.000245,2]
[378166621,1754758245070,-160315.36,0.000245,2]
[378166622,1754758245079,-465.01,0.00024562,2]
[378166623,1754758245089,-460.0,0.00024563,2]
[378166624,1754758245098,-765.25,0.00024563,2]
[378166625,1754758245107,-925.5,0.00024563,2]
[378166626,1754758245117,-913.38,0.00024563,2]
[378166627,1754758245125,-460.0,0.00024563,2]
[378166628,1754758245135,-460.0,0.00024563,2]
[378166629,1754758245144,-460.0,0.00024564,2]
[378166630,1754758245154,-548.52,0.00024564,2]
[378166631,1754758245167,-829.17,0.00024564,2]
[378166632,1754758245177,-460.0,0.00024564,2]
[378166633,1754758245186,-460.0,0.00024564,2]
[378166634,1754758245196,-669.58,0.00024564,2]